bitfinex-derivatives/quotes_BTCF0:USTF0_20241226
["timestamp","ask_amount","ask_price","bid_price","bid_amount"]
[1735226666480,0.13940972,96067.0,96064.0,0.005]
[1735226666672,0.3985,96099.0,96064.0,0.005]
[1735226667076,0.9985,96099.0,96064.0,0.005]
[1735226667276,0.9985,96099.0,96079.0,0.0521]
[1735226667975,0.9985,96099.0,96064.0,0.005]
[1735226667976,0.9985,96099.0,96081.0,0.052098]
[1735226668177,0.9985,96099.0,96088.0,0.052095]
[1735226668378,0.3985,96099.0,96097.0,0.05209]
[1735226668578,0.3995,96099.0,96097.0,0.05209]
[1735226668785,0.38582343,96099.0,96097.0,0.05209]
[1735226668991,0.38682343,96099.0,96097.0,0.0735191]
[1735226669391,0.38882343,96099.0,96097.0,0.0735191]
[1735226669687,0.38882343,96099.0,96077.0,0.00156069]
[1735226669688,0.99182343,96099.0,96077.0,0.00156069]
[1735226669986,0.2046,96098.0,96097.0,0.05209]
[1735226670188,0.15516382,96116.0,96097.0,0.05209]
[1735226670487,0.2089,96115.0,96078.0,0.0521]
[1735226670677,0.2089,96115.0,96079.0,0.0521]
[1735226670872,0.6,96100.0,96079.0,0.0521]
[1735226671137,0.6,96100.0,96078.0,0.0521]
[1735226671284,0.6,96100.0,96098.0,0.052089]
[1735226671486,0.6,96100.0,96077.0,0.023166]
[1735226671689,0.002,96099.0,96096.0,0.052091]
[1735226672083,0.603,96099.0,96096.0,0.052091]
[1735226672284,0.603,96099.0,96098.0,0.05209]
[1735226672485,0.001,96099.0,96098.0,0.05209]
[1735226672688,0.365667,96099.0,96098.0,0.05209]
[1735226673195,0.577267,96099.0,96098.0,0.05209]
[1735226673374,0.577267,96099.0,96077.0,0.023166]
[1735226673578,0.577267,96099.0,96096.0,0.05209]
[1735226673989,0.577267,96099.0,96097.0,0.05209]
[1735226674397,0.579267,96099.0,96097.0,0.05209]
[1735226674583,0.581267,96099.0,96097.0,0.05209]
[1735226675682,0.581267,96099.0,96077.0,0.023166]
[1735226675884,0.579267,96099.0,96077.0,0.023166]
[1735226676195,0.579267,96099.0,96084.0,0.052097]
[1735226676393,0.579267,96099.0,96077.0,0.023166]
[1735226676795,0.879267,96099.0,96046.0,0.71720175]
[1735226677089,0.0369,96095.0,96051.0,0.052115]
[1735226677393,0.702567,96095.0,96070.0,0.052104]
[1735226677593,0.702567,96095.0,96051.0,0.052115]
[1735226677594,0.402567,96095.0,96077.0,0.002]
[1735226677796,0.702567,96095.0,96051.0,0.052115]
[1735226678090,0.702567,96095.0,96069.0,0.052105]
[1735226678294,0.052097,96085.0,96058.0,0.052111]
[1735226678497,0.665667,96085.0,96058.0,0.052111]
[1735226678683,0.665667,96085.0,96060.0,0.05211]
[1735226679105,0.365667,96085.0,96046.0,0.37721357]
[1735226679291,0.52083082,96085.0,96077.0,0.007]
[1735226679791,0.52083082,96085.0,96077.0,0.059101]
[1735226679992,0.52083082,96085.0,96083.0,0.052097]
[1735226680490,0.365667,96085.0,96083.0,0.052097]
[1735226680889,0.365667,96085.0,96077.0,0.007]
[1735226680890,0.212,96084.0,96077.0,0.007]
[1735226681086,0.212,96084.0,96077.0,0.0591]
[1735226681285,0.577667,96084.0,96077.0,0.0591]
[1735226681485,0.1993,96083.0,96077.0,0.0591]
[1735226681895,0.564967,96083.0,96077.0,0.0591]
[1735226682093,0.564967,96083.0,96077.0,0.0521]
[1735226682495,0.564967,96083.0,96069.0,0.052105]
[1735226682687,0.564967,96083.0,96076.0,0.052101]
[1735226682886,0.564967,96083.0,96078.0,0.0521]
[1735226683086,0.564967,96083.0,96063.0,0.02875251]
[1735226683290,0.617065,96083.0,96063.0,0.00156115]
[1735226683587,0.052099,96082.0,96063.0,0.00156115]
[1735226683982,0.665667,96082.0,96076.0,0.006]
[1735226684188,0.66410585,96082.0,96056.0,0.052112]
[1735226684392,0.052099,96081.0,96056.0,0.052112]
[1735226684896,0.12440905,96074.0,96056.0,0.052112]
[1735226685094,0.2116,96073.0,96056.0,0.052112]
[1735226685494,0.87570585,96073.0,96046.0,0.37713762]
[1735226685686,0.5116,96073.0,96046.0,0.01303177]
[1735226685886,0.5116,96073.0,96033.0,0.1213501]
[1735226686090,0.052107,96066.0,96042.0,0.05212]
[1735226686296,0.052107,96066.0,96056.0,0.009]
[1735226686499,0.12440905,96070.0,96056.0,0.009]
[1735226686697,0.12440905,96070.0,96061.0,0.05211]
[1735226687099,0.12440905,96070.0,96056.0,0.02892267]
[1735226687299,0.2126,96073.0,96072.0,0.052104]
[1735226687597,0.10221566,96074.0,96072.0,0.052104]
[1735226688345,0.04572291,96074.0,96072.0,0.052104]
[1735226688489,0.04572291,96074.0,96072.0,0.054104]
[1735226688891,0.32467585,96091.0,96072.0,0.002]
[1735226689104,0.32467585,96091.0,96083.0,0.052097]
[1735226689300,0.32467585,96091.0,96085.0,0.052097]
[1735226689601,0.12437585,96091.0,96087.0,0.052095]
[1735226690126,0.0379,96089.0,96087.0,0.052095]
[1735226690599,0.0369,96089.0,96087.0,0.001]
[1735226691495,0.0369,96089.0,96069.0,0.18465278]
[1735226691691,0.0369,96089.0,96074.0,0.052103]
[1735226691894,0.0369,96089.0,96068.0,0.23675878]
[1735226692398,0.0369,96089.0,96063.0,0.02716798]
[1735226692399,0.0369,96065.0,96063.0,0.02716798]
[1735226692592,0.3974,96064.0,96053.0,0.30774752]
[1735226692792,0.3974,96064.0,96053.0,0.33416315]
[1735226692995,0.052109,96062.0,96053.0,0.33416315]
[1735226693597,0.352109,96062.0,96053.0,0.02641563]
[1735226693794,0.352109,96062.0,96048.0,0.0015615]
[1735226694028,0.052109,96062.0,96048.0,0.0015615]
[1735226694192,0.3974,96064.0,96048.0,0.0015615]
[1735226694396,0.19236981,96068.0,96048.0,0.02892563]
[1735226694588,0.19236981,96068.0,96048.0,0.0015615]
[1735226694975,0.0369,96068.0,96066.0,0.052107]
[1735226696197,0.2039,96092.0,96078.0,0.0521]
[1735226697198,0.2016,96091.0,96078.0,0.0521]
[1735226697609,0.2016,96091.0,96078.0,0.0531]
[1735226697801,0.2016,96091.0,96078.0,0.0571]
[1735226698495,0.2016,96091.0,96078.0,0.005]
[1735226698695,0.2043,96090.0,96078.0,0.005]
[1735226699297,0.2043,96090.0,96078.0,0.001]
[1735226699503,0.2043,96090.0,96078.0,0.005]
[1735226699911,0.2016,96091.0,96078.0,0.001]
[1735226700307,0.15549249,96086.0,96078.0,0.001]
[1735226700604,0.15549249,96086.0,96075.0,0.052102]
[1735226701198,0.15549249,96086.0,96078.0,0.0561]
[1735226701394,0.15549249,96086.0,96078.0,0.005]
[1735226701601,0.15549249,96086.0,96084.0,0.052097]
[1735226701800,0.12440731,96089.0,96087.0,0.052095]
[1735226702204,0.12440731,96089.0,96078.0,0.005]
[1735226702810,0.12440731,96089.0,96078.0,0.0531]
[1735226703018,0.001,96086.0,96079.0,0.0521]
[1735226703710,0.0369,96093.0,96079.0,0.0521]
[1735226704007,0.0369,96095.0,96079.0,0.0521]
[1735226704223,0.12440731,96092.0,96079.0,0.0521]
[1735226704416,0.12440731,96092.0,96079.0,0.0571]
[1735226704605,0.12440731,96092.0,96079.0,0.005]
[1735226704911,0.0369,96091.0,96079.0,0.005]
[1735226705213,0.3369,96091.0,96059.0,0.35004]
[1735226705410,0.12440731,96082.0,96059.0,0.35004]
[1735226705705,0.0369,96069.0,96059.0,0.37674295]
[1735226705907,0.0369,96069.0,96064.0,0.052108]
[1735226706305,0.0369,96069.0,96059.0,0.37730295]
[1735226706511,0.0369,96069.0,96067.0,0.052106]
[1735226707209,0.495977,96122.0,96072.0,0.052103]
[1735226707516,0.052078,96121.0,96093.0,0.052092]
[1735226708011,0.352078,96121.0,96093.0,0.052092]
[1735226708309,0.2046,96120.0,96093.0,0.052092]
[1735226708807,0.2046,96120.0,96071.0,0.24639209]
[1735226709004,0.2046,96120.0,96071.0,0.54639209]
[1735226709205,0.2046,96120.0,96099.0,0.052089]
[1735226709412,0.2046,96120.0,96072.0,0.208]
[1735226709599,0.050649,96119.0,96072.0,0.75439209]
[1735226709803,0.050649,96119.0,96082.0,0.052098]
[1735226710204,0.050649,96119.0,96085.0,0.052096]
[1735226710410,0.050649,96119.0,96082.0,0.052098]
[1735226711204,0.2056,96120.0,96082.0,0.052098]
[1735226712113,0.2046,96120.0,96082.0,0.052098]
[1735226712313,0.2046,96120.0,96082.0,0.054098]
[1735226712611,0.001,96122.0,96086.0,0.052096]
[1735226712917,0.2486,96126.0,96082.0,0.002]
[1735226713213,0.2486,96126.0,96083.0,0.052097]
[1735226713513,0.2486,96126.0,96087.0,0.052095]
[1735226713709,0.2486,96126.0,96082.0,0.02819269]
[1735226713917,0.2486,96126.0,96086.0,0.002]
[1735226715324,0.2486,96126.0,96090.0,0.052094]
[1735226715616,0.2486,96126.0,96082.0,0.27258478]
[1735226715617,0.2486,96126.0,96083.0,0.003]
[1735226716210,0.052076,96124.0,96094.0,0.052091]
[1735226716398,0.052076,96124.0,96083.0,0.003]
[1735226716600,0.052076,96124.0,96098.0,0.052089]
[1735226718515,0.054076,96124.0,96098.0,0.052089]
[1735226718707,0.054076,96124.0,96099.0,0.052089]
[1735226718908,0.002,96124.0,96083.0,0.003]
[1735226719319,0.002,96124.0,96082.0,0.02619269]
[1735226719611,0.005,96124.0,96083.0,0.01018505]
[1735226719811,0.005,96124.0,96086.0,0.052096]
[1735226720118,0.002,96124.0,96083.0,0.003]
[1735226720510,0.054076,96124.0,96082.0,0.004]
[1735226720865,0.052078,96119.0,96094.0,0.052091]
[1735226722016,0.052078,96119.0,96082.0,0.005]
[1735226722017,0.052079,96118.0,96089.0,0.052094]
[1735226722218,0.052079,96118.0,96090.0,0.052094]
[1735226722616,0.052079,96118.0,96094.0,0.001]
[1735226723010,0.3,96118.0,96094.0,0.001]
[1735226723205,0.3,96118.0,96079.0,0.02658128]
[1735226723414,0.32659392,96118.0,96070.0,0.24639209]
[1735226723705,0.052081,96115.0,96070.0,0.24639209]
[1735226723905,0.052095,96089.0,96070.0,0.24639209]
[1735226724110,0.525295,96088.0,96070.0,0.24639209]
[1735226724418,0.4732,96088.0,96070.0,0.27270127]
[1735226724617,0.2452,96087.0,96070.0,0.27270127]
[1735226725118,0.59586256,96087.0,96070.0,0.02630918]
[1735226725325,0.59586256,96087.0,96079.0,0.002]
[1735226725513,0.59586256,96087.0,96058.0,0.0015613]
[1735226725715,0.59586256,96087.0,96059.0,0.01027301]
[1735226725909,0.052102,96075.0,96070.0,0.002]
[1735226726114,0.29586256,96087.0,96076.0,0.052102]
[1735226726312,0.29586256,96087.0,96083.0,0.052098]
[1735226726508,0.05066256,96086.0,96085.0,0.052097]
[1735226727123,0.05066256,96086.0,96085.0,0.06236947]
[1735226727423,0.05066256,96086.0,96085.0,0.06237032]
[1735226727607,0.04609169,96086.0,96085.0,0.06237032]
[1735226727812,0.03482582,96086.0,96085.0,0.06237633]
[1735226728120,0.38912916,96124.0,96085.0,0.06237633]
[1735226728121,0.18672008,96115.0,96085.0,0.06237633]
[1735226728420,0.052083,96110.0,96086.0,0.01027933]
[1735226728612,0.052083,96110.0,96087.0,0.01027933]
[1735226728816,0.2342,96109.0,96088.0,0.01027933]
[1735226729121,0.2342,96109.0,96089.0,0.01027933]
[1735226729319,0.2342,96109.0,96090.0,0.01027933]
[1735226729513,0.2342,96109.0,96085.0,0.0332641]
[1735226729711,0.052086,96106.0,96087.0,0.001]
[1735226729924,0.052087,96103.0,96088.0,0.01028135]
[1735226730220,0.53524001,96109.0,96072.0,0.03319912]
[1735226730221,0.2447,96102.0,96072.0,0.03319912]
[1735226730473,0.052093,96093.0,96073.0,0.0102804]
[1735226730618,0.2426,96092.0,96074.0,0.0102804]
[1735226730921,0.2426,96092.0,96070.0,0.24639209]
[1735226730922,0.2426,96092.0,96075.0,0.0102804]
[1735226731117,0.2426,96092.0,96076.0,0.0102804]
[1735226731319,0.2426,96092.0,96070.0,0.03329313]
[1735226731517,0.2426,96092.0,96071.0,0.01028519]
[1735226731713,0.2426,96092.0,96072.0,0.01028519]
[1735226731918,0.2426,96092.0,96087.0,0.001]
[1735226732620,0.18672008,96103.0,96087.0,0.001]
[1735226732826,0.18672008,96103.0,96091.0,0.052093]
[1735226733327,0.002,96092.0,96091.0,0.052093]
[1735226733525,0.18672008,96103.0,96091.0,0.01027623]
[1735226733733,0.18672008,96103.0,96076.0,0.052101]
[1735226733734,0.18672008,96103.0,96092.0,0.24337623]
[1735226733930,0.18672008,96119.0,96093.0,0.01027623]
[1735226734222,0.18672008,96119.0,96094.0,0.01027623]
[1735226734432,0.18672008,96119.0,96092.0,0.2331]
[1735226734433,0.18672008,96119.0,96095.0,0.01027623]
[1735226734621,0.18672008,96119.0,96096.0,0.01027623]
[1735226734822,0.4757,96126.0,96097.0,0.01027623]
[1735226734823,0.052078,96120.0,96097.0,0.01027623]
[1735226735023,0.052078,96120.0,96098.0,0.01027623]
[1735226735221,0.4757,96126.0,96099.0,0.01027623]
[1735226735418,0.052075,96125.0,96097.0,0.05209]
[1735226735614,0.001,96119.0,96097.0,0.05209]
[1735226735929,0.001,96119.0,96092.0,0.26627562]
[1735226736716,0.001,96119.0,96092.0,0.31836862]
[1735226736924,0.002,96125.0,96092.0,0.26627562]
[1735226737122,0.002,96125.0,96098.0,0.052089]
[1735226737322,0.002,96125.0,96092.0,0.26627562]
[1735226738223,0.4757,96126.0,96092.0,0.26727562]
[1735226738424,0.4747,96126.0,96092.0,0.26727562]
[1735226738631,0.4747,96126.0,96093.0,0.24639209]
[1735226739273,0.2439,96126.0,96093.0,0.24639209]
[1735226739734,0.2439,96126.0,96096.0,0.24639209]
[1735226740519,6.282e-05,96107.0,96097.0,0.05209]
[1735226740728,6.282e-05,96107.0,96096.0,0.24639209]
[1735226741632,6.282e-05,96107.0,96097.0,0.004]
[1735226742433,0.00106282,96107.0,96097.0,0.004]
[1735226742824,0.00106282,96107.0,96097.0,0.013]
[1735226743125,0.00106282,96107.0,96099.0,0.24639209]
[1735226744531,0.00106282,96107.0,96097.0,0.009]
[1735226744730,0.00106282,96107.0,96099.0,0.003]
[1735226745530,6.282e-05,96107.0,96099.0,0.003]
[1735226745732,0.00106282,96107.0,96099.0,0.012]
[1735226746636,0.00306282,96107.0,96099.0,0.003]
[1735226747138,0.00306282,96107.0,96094.0,0.24639209]
[1735226747434,0.00306282,96107.0,96099.0,0.003]
[1735226747931,0.00306282,96107.0,96092.0,0.03317562]
[1735226748127,0.00306282,96107.0,96099.0,0.003]
[1735226748380,6.282e-05,96107.0,96099.0,0.003]
[1735226748525,0.00106282,96107.0,96099.0,0.012]
[1735226748923,6.282e-05,96107.0,96099.0,0.003]
[1735226749122,0.00106282,96107.0,96099.0,0.003]
[1735226749638,0.00106282,96107.0,96099.0,0.012]
[1735226750232,0.00106282,96107.0,96099.0,0.009]
[1735226751035,0.00106282,96107.0,96099.0,0.012]
[1735226752524,0.2327,96106.0,96099.0,0.064089]
[1735226752731,0.00106282,96107.0,96099.0,0.05417574]
[1735226753638,0.00106282,96107.0,96099.0,0.05117574]
[1735226753839,0.00106282,96107.0,96099.0,0.05417574]
[1735226754238,6.282e-05,96107.0,96099.0,0.04517574]
[1735226754438,0.001,96106.0,96099.0,0.05117574]
[1735226754639,0.001,96106.0,96099.0,0.05417574]
[1735226754942,0.00106282,96107.0,96099.0,0.05417574]
[1735226755535,0.001,96106.0,96099.0,0.05417574]
[1735226757134,6.282e-05,96107.0,96099.0,0.05417574]
[1735226757436,0.00106282,96107.0,96099.0,0.35417574]
[1735226757943,0.001,96106.0,96099.0,0.35417574]
[1735226758241,0.001,96106.0,96099.0,0.05417574]
[1735226758443,0.00106282,96107.0,96099.0,0.35417574]
[1735226759342,0.00106282,96107.0,96100.0,0.16037857]
[1735226759538,0.10667234,96130.0,96101.0,0.1044]
[1735226759837,0.10667234,96130.0,96105.0,0.052085]
[1735226760141,0.10667234,96130.0,96105.0,0.224985]
[1735226760440,0.10667234,96130.0,96112.0,0.052082]
[1735226760629,0.10667234,96130.0,96114.0,0.052081]
[1735226760836,0.10667234,96130.0,96112.0,0.352082]
[1735226761035,0.01330001,96130.0,96112.0,0.524982]
[1735226761238,0.01430001,96130.0,96116.0,0.05208]
[1735226761530,0.01430001,96130.0,96117.0,0.052079]
[1735226761735,0.01430001,96130.0,96117.0,0.352079]
[1735226762374,0.01430001,96130.0,96117.0,0.56223919]
[1735226762541,0.01430001,96130.0,96119.0,0.36941837]
[1735226762947,0.01430001,96130.0,96119.0,0.42149637]
[1735226763139,0.2276,96129.0,96119.0,0.36941837]
[1735226763448,0.01430001,96130.0,96119.0,0.36941837]
[1735226763449,0.01430001,96130.0,96120.0,0.3498]
[1735226763743,0.09337233,96158.0,96141.0,0.052066]
[1735226763951,0.09337233,96158.0,96121.0,0.052077]
[1735226764134,0.09337233,96158.0,96121.0,0.352077]
[1735226764336,0.09337233,96161.0,96127.0,0.052074]
[1735226764551,0.09337233,96161.0,96121.0,0.82589537]
[1735226764847,0.09337233,96161.0,96137.0,0.052068]
[1735226765039,0.09337233,96161.0,96139.0,0.052067]
[1735226765246,0.09337233,96161.0,96137.0,0.352068]
[1735226765450,0.09337233,96161.0,96137.0,0.3]
[1735226765644,0.38433317,96174.0,96137.0,0.3]
[1735226765645,0.2287,96174.0,96145.0,0.052064]
[1735226765846,0.2287,96174.0,96145.0,0.3]
[1735226766053,0.2276,96182.0,96145.0,0.3]
[1735226766640,0.2276,96182.0,96148.0,0.052062]
[1735226767042,0.2276,96182.0,96149.0,0.052062]
[1735226767596,0.2276,96182.0,96140.0,0.052067]
[1735226767742,0.2276,96182.0,96140.0,0.352067]
[1735226767942,0.2276,96182.0,96140.0,0.3]
[1735226768149,0.2276,96182.0,96149.0,0.001]
[1735226768550,0.2276,96182.0,96149.0,0.301]
[1735226768953,0.2276,96182.0,96149.0,0.001]
[1735226769249,0.2276,96182.0,96149.0,0.301]
[1735226769650,0.2276,96182.0,96137.0,0.14698771]
[1735226769845,0.2276,96182.0,96145.0,0.052064]
[1735226770149,0.2276,96182.0,96147.0,0.052063]
[1735226770358,0.2276,96182.0,96140.0,0.003]
[1735226770359,0.2276,96182.0,96144.0,0.052065]
[1735226770748,0.2276,96182.0,96149.0,0.011]
[1735226771273,0.052048,96175.0,96142.0,0.052066]
[1735226771649,0.352048,96175.0,96144.0,0.005]
[1735226772051,0.22868,96182.0,96149.0,0.007]
[1735226772243,0.52868,96182.0,96144.0,0.005]
[1735226772452,0.05205,96171.0,96136.0,0.65418407]
[1735226772650,0.052052,96168.0,96136.0,0.65354407]
[1735226773050,0.3,96168.0,96136.0,0.60147507]
[1735226773245,0.3,96168.0,96142.0,0.002]
[1735226773451,0.052055,96163.0,96130.0,0.052072]
[1735226773653,0.052055,96163.0,96132.0,0.052071]
[1735226773854,0.352055,96163.0,96136.0,0.003]
[1735226774054,0.352055,96163.0,96132.0,0.052071]
[1735226774254,0.3,96163.0,96120.0,0.052078]
[1735226774447,0.3,96163.0,96117.0,0.04327316]
[1735226774691,0.09337233,96171.0,96132.0,0.002]
[1735226774858,0.09337233,96171.0,96132.0,0.003]
[1735226775158,0.39337233,96171.0,96132.0,0.002]
[1735226775356,0.39337233,96171.0,96143.0,0.052065]
[1735226775750,0.052051,96170.0,96136.0,0.052069]
[1735226776157,0.352051,96170.0,96136.0,0.052069]
[1735226776655,0.2398,96169.0,96138.0,0.052068]
[1735226776956,0.052054,96165.0,96130.0,0.052072]
[1735226777218,0.5398,96169.0,96135.0,0.052069]
[1735226777571,0.2281,96168.0,96145.0,0.052064]
[1735226777869,0.2281,96168.0,96117.0,0.04436702]
[1735226778047,0.2281,96168.0,96133.0,0.05207]
[1735226778250,0.052054,96164.0,96130.0,0.004]
[1735226778555,0.052054,96164.0,96132.0,0.052071]
[1735226778752,0.352054,96164.0,96132.0,0.052071]
[1735226779152,0.3,96164.0,96130.0,0.004]
[1735226779361,0.052056,96160.0,96130.0,0.004]
[1735226779554,0.2259,96159.0,96130.0,0.0463289]
[1735226779752,0.2259,96159.0,96130.0,0.004]
[1735226779952,0.5259,96159.0,96130.0,0.004]
[1735226780164,0.577957,96159.0,96124.0,0.052075]
[1735226780659,0.577957,96159.0,96133.0,0.001]
[1735226780859,0.05206,96153.0,96117.0,0.05363897]
[1735226781064,0.52894001,96159.0,96117.0,0.00155997]
[1735226781248,0.09337233,96158.0,96124.0,0.052075]
[1735226781455,0.09337233,96158.0,96124.0,0.053075]
[1735226781655,0.39337233,96158.0,96124.0,0.054075]
[1735226781854,0.39337233,96158.0,96124.0,0.053075]
[1735226782065,0.05206,96153.0,96124.0,0.001]
[1735226782361,0.052064,96146.0,96124.0,0.001]
[1735226782554,0.295264,96145.0,96117.0,0.0471339]
[1735226782864,0.2406,96144.0,96117.0,0.0471339]
[1735226783257,0.052069,96137.0,96104.0,0.052086]
[1735226783460,0.052069,96137.0,96124.0,0.002]
[1735226783658,0.352069,96137.0,96104.0,0.052086]
[1735226783922,0.352069,96137.0,96104.0,0.0949683]
[1735226784060,0.2296,96136.0,96117.0,0.001]
[1735226784253,0.052072,96132.0,96092.0,0.052092]
[1735226784564,0.052072,96132.0,96096.0,0.05209]
[1735226784964,0.2296,96136.0,96104.0,0.004]
[1735226785151,0.5296,96136.0,96117.0,0.001]
[1735226785355,0.09337233,96133.0,96117.0,0.001]
[1735226786466,0.32297233,96136.0,96117.0,0.001]
[1735226786667,0.001,96132.0,96117.0,0.001]
[1735226786977,0.001,96132.0,96107.0,0.052085]
[1735226787168,0.002,96132.0,96107.0,0.052085]
[1735226787468,0.32297233,96136.0,96117.0,0.001]
[1735226787670,0.62297233,96136.0,96117.0,0.001]
[1735226787870,0.09337233,96132.0,96117.0,0.001]
[1735226788171,0.09437233,96132.0,96122.0,0.086663]
[1735226788363,0.07314961,96132.0,96128.0,0.052073]
[1735226788570,0.07314961,96132.0,96129.0,0.052072]
[1735226788870,0.07314961,96132.0,96127.0,0.052074]
[1735226789315,0.001,96132.0,96127.0,0.052074]
[1735226789763,0.2296,96136.0,96120.0,0.086663]
[1735226789968,0.2296,96136.0,96117.0,0.05362622]
[1735226790169,0.2296,96136.0,96117.0,0.05262622]
[1735226790365,0.052073,96130.0,96100.0,0.16257969]
[1735226790561,0.052073,96128.0,96100.0,0.16257969]
[1735226790761,0.052074,96127.0,96095.0,0.36997837]
[1735226791072,0.052074,96127.0,96090.0,0.16257969]
[1735226791569,0.052076,96123.0,96100.0,0.16657969]
[1735226791768,0.2335,96122.0,96100.0,0.004]
[1735226791960,0.2335,96122.0,96100.0,0.16657969]
[1735226792359,0.2335,96122.0,96110.0,0.16257969]
[1735226792960,0.2335,96122.0,96111.0,0.052083]
[1735226793567,0.2335,96122.0,96110.0,0.16257969]
[1735226793772,0.2335,96122.0,96110.0,0.004]
[1735226793972,0.2335,96122.0,96110.0,0.006]
[1735226794169,0.2335,96122.0,96110.0,0.16457969]
[1735226794377,0.2335,96122.0,96111.0,0.004]
[1735226795868,0.2335,96122.0,96110.0,0.05823863]
[1735226796569,0.2335,96122.0,96111.0,0.003]
[1735226796977,0.2335,96122.0,96111.0,0.005]
[1735226797276,0.2335,96122.0,96111.0,0.002]
[1735226797680,0.052077,96121.0,96111.0,0.002]
[1735226798076,0.2462,96120.0,96111.0,0.002]
[1735226798872,0.052082,96113.0,96111.0,0.002]
[1735226799074,0.2524,96112.0,96111.0,0.002]
[1735226799273,0.2524,96112.0,96110.0,0.05623863]
[1735226799572,0.2524,96112.0,96111.0,0.002]
[1735226799771,0.2524,96112.0,96111.0,0.005]
[1735226800883,0.052083,96110.0,96091.0,0.00156056]
[1735226801183,0.052091,96096.0,96091.0,0.00156056]
[1735226801483,0.2344,96095.0,96080.0,0.30860136]
[1735226801783,0.286491,96095.0,96080.0,0.30860136]
[1735226802082,0.16257969,96090.0,96080.0,0.30860136]
[1735226802284,0.253,96089.0,96080.0,0.30860136]
[1735226802885,0.253,96089.0,96076.0,0.05179443]
[1735226803068,0.253,96089.0,96080.0,0.004]
[1735226803579,0.253,96089.0,96071.0,0.05241587]
[1735226803776,0.16257969,96081.0,96080.0,0.004]
[1735226804082,0.052096,96087.0,96080.0,0.004]
[1735226804286,0.2542,96088.0,96080.0,0.004]
[1735226805181,0.306295,96088.0,96080.0,0.004]
[1735226805886,0.2542,96088.0,96071.0,0.05641587]
[1735226806378,0.2542,96088.0,96071.0,0.05241587]
[1735226806683,0.2562,96088.0,96080.0,0.004]
[1735226807079,0.052099,96081.0,96071.0,0.05641587]
[1735226807279,0.21467869,96081.0,96071.0,0.05641587]
[1735226807774,0.16257969,96081.0,96071.0,0.05641587]
[1735226809070,0.16257969,96081.0,96071.0,0.05241587]
[1735226809274,0.16357969,96081.0,96071.0,0.05341587]
[1735226809485,0.21567869,96081.0,96071.0,0.05341587]
[1735226809877,0.21467869,96081.0,96071.0,0.05241587]
[1735226810078,0.2552,96088.0,96071.0,0.05241587]
[1735226810808,0.16257969,96081.0,96071.0,0.05241587]
[1735226810983,0.2562,96088.0,96071.0,0.05241587]
[1735226811177,0.2552,96088.0,96071.0,0.05241587]
[1735226811581,0.2542,96088.0,96071.0,0.05241587]
[1735226811784,0.001,96081.0,96071.0,0.05241587]
[1735226812081,0.16357969,96081.0,96071.0,0.05241587]
[1735226812276,0.001,96081.0,96071.0,0.05241587]
[1735226812478,0.2552,96088.0,96071.0,0.05241587]
[1735226813084,0.001,96081.0,96071.0,0.05241587]
[1735226813381,0.253,96089.0,96071.0,0.05241587]
[1735226813588,0.0750499,96097.0,96083.0,0.052098]
[1735226813781,0.0750499,96097.0,96087.0,0.08680392]
[1735226813782,0.001,96088.0,96087.0,0.08680392]
[1735226814091,0.0750499,96100.0,96083.0,0.052098]
[1735226814482,0.0750499,96100.0,96078.0,0.16263184]
[1735226815081,0.001,96081.0,96078.0,0.16263184]
[1735226815282,0.0750499,96100.0,96078.0,0.46263184]
[1735226815583,0.05209,96097.0,96080.0,0.18571687]
[1735226816379,0.001,96088.0,96080.0,0.18571687]
[1735226816995,0.001,96088.0,96078.0,0.003]
[1735226817185,0.001,96097.0,96078.0,0.16563184]
[1735226817883,0.052088,96101.0,96078.0,0.16563184]
[1735226818085,0.001,96088.0,96078.0,0.16263184]
[1735226818685,0.001,96088.0,96081.0,0.18571687]
[1735226819811,0.001,96088.0,96082.0,0.18571687]
[1735226820292,0.052098,96083.0,96082.0,0.18571687]
[1735226820588,0.2562,96087.0,96074.0,0.24752524]
[1735226820589,0.052101,96078.0,96074.0,0.24752524]
[1735226821096,0.308296,96087.0,96074.0,0.24752524]
[1735226821317,0.0521,96080.0,96071.0,0.05241587]
[1735226821485,0.0521,96079.0,96071.0,0.05241587]
[1735226821675,0.052101,96078.0,96071.0,0.05241587]
[1735226821876,0.2562,96087.0,96071.0,0.05241587]
[1735226822079,0.052101,96077.0,96071.0,0.05241587]
[1735226822485,0.052104,96072.0,96071.0,0.05241587]
[1735226823588,0.2337,96077.0,96056.0,0.24752524]
[1735226823887,0.05211,96062.0,96056.0,0.30013868]
[1735226824090,0.05211,96062.0,96056.0,0.05261344]
[1735226824308,0.05211,96062.0,96050.0,0.24752524]
[1735226825180,0.05311,96062.0,96056.0,0.006]
[1735226825490,0.001,96062.0,96056.0,0.006]
[1735226825686,0.2337,96077.0,96050.0,0.16263184]
[1735226825880,0.2337,96077.0,96060.0,0.16263184]
[1735226826192,0.285801,96077.0,96056.0,0.001]
[1735226826789,0.2466,96076.0,96056.0,0.001]
[1735226827184,0.39283317,96082.0,96060.0,0.16263184]
[1735226827185,0.15563317,96082.0,96060.0,0.16263184]
[1735226827384,0.02193237,96082.0,96072.0,0.16263184]
[1735226827885,0.2364,96101.0,96072.0,0.16263184]
[1735226827886,0.02193237,96094.0,96072.0,0.16263184]
[1735226828581,0.005,96082.0,96072.0,0.16263184]
[1735226828979,0.005,96082.0,96073.0,0.24752524]
[1735226829185,0.2364,96101.0,96073.0,0.24752524]
[1735226829382,0.052089,96100.0,96073.0,0.24752524]
[1735226830493,0.052089,96100.0,96075.0,0.24752524]
[1735226831389,0.05209,96098.0,96075.0,0.24752524]
[1735226832194,0.2466,96102.0,96088.0,0.16263184]
[1735226832394,0.001,96100.0,96088.0,0.16263184]